bitfinex-derivatives/quotes_ETHF0:USTF0_20251126
["timestamp","ask_amount","ask_price","bid_price","bid_amount"]
[1764187149521,1.62919108,3035.2,3035.1,0.4815]
[1764187150920,2.05799108,3035.9,3035.8,0.4815]
[1764187151126,2.84470164,3035.9,3035.8,0.4815]
[1764187151423,2.84470164,3035.9,3035.5,0.2802]
[1764187151614,0.4288,3035.6,3035.5,0.7617]
[1764187151819,1.21551056,3035.6,3035.5,0.7617]
[1764187152828,0.82000737,3035.6,3035.5,0.7617]
[1764187153224,2.44919845,3035.6,3035.5,0.7617]
[1764187154524,2.44884518,3035.6,3035.5,0.7617]
[1764187155325,2.44884518,3035.6,3035.5,0.2802]
[1764187156924,2.44884518,3035.6,3035.5,0.7617]
[1764187159125,0.78671056,3035.6,3035.5,0.7617]
[1764187159329,1.1837865,3036.0,3035.9,0.4815]
[1764187159330,1.62883781,3036.0,3035.9,0.4815]
[1764187159531,2.4183461,3036.0,3035.9,0.4815]
[1764187160235,3.6354326,3036.0,3035.5,0.2802]
[1764187160427,1.62883781,3035.6,3035.5,0.7617]
[1764187160730,2.4183461,3035.6,3035.5,0.7617]
[1764187161724,2.4516461,3035.6,3035.5,0.7617]
[1764187162124,2.4183461,3035.6,3035.5,0.7617]
[1764187163030,2.0228734,3035.6,3035.5,0.7617]
[1764187164231,2.0561734,3035.6,3035.5,0.7617]
[1764187164426,2.0561734,3035.6,3035.5,0.2802]
[1764187164627,2.0561734,3035.6,3035.5,0.7617]
[1764187165931,2.0228734,3035.6,3035.5,0.7617]
[1764187166533,2.0561734,3035.6,3035.5,0.7617]
[1764187169942,2.0228734,3035.6,3035.5,0.7617]
[1764187171641,0.78950829,3035.6,3035.5,0.7617]
[1764187171836,1.1837865,3035.8,3035.7,0.4815]
[1764187172340,1.97681221,3035.8,3035.7,0.4815]
[1764187172941,1.58134166,3035.8,3035.7,0.4815]
[1764187173136,1.58134166,3035.8,3035.5,0.2802]
[1764187173137,0.0333,3035.6,3035.5,0.2802]
[1764187173336,1.66213781,3035.6,3035.0,0.2808]
[1764187173537,1.62883781,3035.2,3035.1,0.4815]
[1764187173937,1.62883781,3035.4,3035.3,0.4815]
[1764187174240,2.42018388,3035.4,3035.3,0.4815]
[1764187174444,0.79134607,3035.4,3035.3,0.4815]
[1764187175642,2.45348388,3035.4,3035.3,0.4815]
[1764187176030,2.45348388,3035.4,3035.0,0.2808]
[1764187176232,1.62883781,3035.1,3035.0,0.7638]
[1764187177543,1.62883781,3035.1,3034.6,1.707]
[1764187177544,0.0309,3034.7,3034.6,1.707]
[1764187177739,0.0309,3034.6,3034.5,0.28372907]
[1764187177938,2.45078579,3034.6,3034.5,0.28372907]
[1764187179640,0.0309,3034.1,3034.0,0.2808]
[1764187179841,1.65973781,3034.1,3034.0,0.7638]
[1764187180042,2.45078579,3034.1,3034.0,0.7638]
[1764187180243,2.45078579,3034.1,3033.5,1.90903781]
[1764187180244,0.0309,3033.6,3033.5,0.2854]
[1764187180449,2.45078579,3033.6,3033.5,0.2854]
[1764187180652,2.45470936,3033.6,3033.5,0.7715936]
[1764187181744,2.45470936,3033.6,3033.5,0.2885936]
[1764187182753,0.82587155,3033.6,3033.5,0.2885936]
[1764187183145,0.03482357,3033.6,3033.5,0.2885936]
[1764187184347,0.0309,3033.3,3033.2,0.00494096]
[1764187184653,0.0309,3032.6,3032.5,0.2854]
[1764187184849,0.0309,3032.6,3031.5,0.2854]
[1764187184850,0.0309,3032.1,3032.0,0.7684]
[1764187185051,0.0309,3032.1,3032.0,0.2854]
[1764187185257,0.0309,3032.1,3031.5,0.2854]
[1764187185451,0.03584096,3032.1,3031.5,0.29411055]
[1764187185750,0.00494096,3032.1,3032.0,0.7684]
[1764187186249,0.03584096,3032.1,3032.0,0.7684]
[1764187187449,0.03584096,3032.1,3032.0,0.2854]
[1764187187748,0.00494096,3032.1,3032.0,0.7684]
[1764187188350,0.2826,3033.5,3032.3,0.483]
[1764187188555,2.72921548,3033.5,3032.5,0.1525]
[1764187188856,0.2826,3033.5,3032.5,0.1525]
[1764187189554,0.46454096,3033.3,3033.2,0.483]
[1764187189951,0.00494096,3033.3,3033.2,0.483]
[1764187190156,0.46454096,3033.3,3033.2,0.483]
[1764187193265,0.00494096,3033.3,3033.2,0.483]
[1764187194563,0.46454096,3033.3,3033.2,0.483]
[1764187198373,0.00494096,3033.3,3033.2,0.483]
[1764187198863,0.46454096,3033.3,3033.2,0.483]
[1764187199266,0.00494096,3033.3,3033.2,0.483]
[1764187200765,0.4596,3033.1,3033.0,0.7684]
[1764187200969,0.46454096,3033.3,3033.2,0.483]
[1764187201161,0.4596,3033.1,3033.0,0.7684]
[1764187201762,0.4596,3033.1,3033.0,0.483]
[1764187201962,0.00494096,3033.3,3032.9,0.00494096]
[1764187201963,0.7422,3033.0,3032.9,0.00494096]
[1764187202164,0.7422,3033.0,3031.7,0.075]
[1764187202373,2.44661548,3032.8,3031.7,0.075]
[1764187202667,0.4596,3031.8,3031.7,0.558]
[1764187203065,0.4596,3031.8,3031.7,0.075]
[1764187203563,0.4596,3031.8,3031.7,0.558]
[1764187203765,2.44661548,3032.4,3031.9,0.483]
[1764187203967,0.4596,3031.8,3031.7,0.075]
[1764187204167,0.4596,3031.6,3031.5,0.48676959]
[1764187204761,0.7422,3032.0,3031.9,0.483]
[1764187205063,0.4596,3031.6,3031.5,0.00376959]
[1764187205268,0.7567,3031.5,3030.0,0.45045]
[1764187205460,2.44661548,3031.2,3030.1,0.101]
[1764187206065,0.2692,3031.5,3030.1,0.101]
[1764187206266,0.49119354,3031.5,3031.4,0.4851]
[1764187206568,0.00369354,3031.5,3031.4,0.4851]
[1764187206760,0.77119354,3031.5,3031.0,0.2696]
[1764187206961,0.49119354,3031.5,3031.4,0.4583]
[1764187207168,0.00369354,3031.5,3031.4,0.4583]
[1764187207569,0.00494096,3031.8,3031.7,0.4583]
[1764187207772,0.48864096,3031.8,3031.0,0.2696]
[1764187208569,0.49120646,3031.8,3031.7,0.4583]
[1764187208765,1.28189141,3031.8,3031.7,0.4583]
[1764187209574,1.16675414,3032.2,3032.1,0.4583]
[1764187209771,0.4837,3032.3,3032.2,0.4583]
[1764187210084,0.4837,3032.3,3031.3,0.16498]
[1764187210372,0.4837,3032.3,3031.4,0.585]
[1764187210561,0.48747924,3032.3,3031.4,0.585]
[1764187210769,0.00494096,3032.2,3031.4,0.585]
[1764187211272,0.00494096,3032.2,3032.1,0.4583]
[1764187211479,0.00377924,3032.3,3032.2,0.4583]
[1764187211871,0.00377924,3032.3,3031.6,0.16497]
[1764187211872,0.48747924,3032.3,3031.6,0.16497]
[1764187212474,0.4924202,3032.3,3031.6,0.16497]
[1764187214078,0.4924202,3032.3,3031.5,0.749]
[1764187214381,0.28,3032.0,3031.1,2.671]
[1764187216478,0.0087202,3032.3,3031.9,0.4583]
[1764187216787,0.7637,3032.0,3031.9,0.4583]
[1764187217377,0.7637,3032.0,3031.3,0.16498]
[1764187217582,0.4924202,3032.3,3032.2,0.4583]
[1764187217880,0.4924202,3032.3,3031.5,0.094]
[1764187219382,0.0087202,3032.3,3032.2,0.4583]
[1764187219784,0.4924202,3032.3,3032.2,0.4583]
[1764187220582,0.0087202,3032.3,3032.2,0.4583]
[1764187221176,0.4924202,3032.3,3032.2,0.4583]
[1764187221476,0.4924202,3032.3,3031.5,0.094]
[1764187221778,1.2721698,3032.2,3032.1,0.4583]
[1764187221975,0.0087202,3032.3,3032.2,0.4583]
[1764187222185,2.05702268,3033.0,3032.2,0.4583]
[1764187222186,0.2826,3033.0,3032.2,0.4583]
[1764187223285,0.4837,3032.3,3031.5,0.094]
[1764187223477,0.4837,3032.3,3031.6,0.00494096]
[1764187223879,0.7637,3032.5,3032.4,0.4583]
[1764187224689,0.28386635,3033.0,3032.4,0.4583]
[1764187225574,0.7637,3032.5,3032.4,0.4583]
[1764187225776,0.4837,3031.7,3031.6,0.00494096]
[1764187225982,0.4837,3031.7,3030.5,0.00283115]
[1764187225983,6.4837,3031.7,3030.5,0.00283115]
[1764187226188,0.28,3031.5,3030.5,0.00283115]
[1764187226377,0.28,3031.5,3030.5,0.14553115]
[1764187226783,0.28,3031.5,3030.5,0.00283115]
[1764187226983,0.4837,3030.8,3030.7,0.00494096]
[1764187227282,0.48496635,3030.8,3030.7,0.00494096]
[1764187229286,0.48496635,3030.8,3029.6,0.107]
[1764187229287,0.28,3030.5,3029.6,0.107]
[1764187230287,0.28,3030.5,3029.7,0.00494927]
[1764187230491,0.00126635,3030.8,3030.7,0.4583]
[1764187230692,0.48496635,3030.8,3029.8,0.16507]
[1764187230992,0.48496635,3030.8,3029.7,0.00494927]
[1764187232804,0.28,3030.0,3029.7,0.00494927]
[1764187233301,0.28,3030.0,3029.9,0.4583]
[1764187234299,0.7637,3030.5,3029.7,0.00494927]
[1764187234695,0.7637,3030.5,3030.4,0.4583]
[1764187235201,0.28,3030.5,3030.4,0.4583]
[1764187235395,0.00126635,3030.8,3030.4,0.4583]
[1764187235596,0.7423,3030.5,3029.7,0.17001927]
[1764187239805,0.2699,3030.5,3030.4,0.4926]
[1764187240110,0.7423,3030.5,3030.4,0.4926]
[1764187240308,0.7423,3030.5,3029.7,0.17001927]
[1764187241101,0.7423,3030.5,3029.8,0.16507]
[1764187241312,0.00126635,3030.8,3030.4,0.4926]
[1764187241506,0.7423,3030.5,3030.4,0.4926]
[1764187242010,0.2699,3030.5,3030.4,0.4926]
[1764187242210,0.7423,3030.5,3030.4,0.4926]
[1764187242410,0.7423,3030.5,3029.8,0.16507]
[1764187242713,0.7423,3030.5,3029.8,0.72107]
[1764187242907,0.7423,3030.5,3029.8,0.556]
[1764187243113,0.2699,3030.0,3029.7,0.00494927]
[1764187243309,0.2699,3030.5,3029.9,0.4926]
[1764187243512,0.2699,3030.5,3030.4,0.4926]
[1764187243712,0.7423,3030.5,3029.7,0.17001927]
[1764187244708,0.7423,3030.5,3030.4,0.4926]
[1764187244908,0.2699,3030.5,3030.4,0.4926]
[1764187245109,0.7423,3030.5,3030.4,0.4926]
[1764187245309,0.7423,3030.5,3029.7,0.17001927]
[1764187245709,0.2699,3030.5,3030.4,0.4926]
[1764187245913,0.00126635,3030.8,3030.4,0.4926]
[1764187246506,0.47366635,3030.8,3030.7,0.4926]
[1764187247122,0.47366635,3030.8,3030.0,0.2698]
[1764187247512,0.47366635,3030.8,3030.0,0.43486]
[1764187248418,0.47366635,3030.8,3030.0,0.16506]
[1764187249015,0.47366635,3030.8,3029.7,0.00494927]
[1764187249016,0.4724,3029.8,3029.7,0.00494927]
[1764187249211,0.2699,3030.0,3029.6,0.00254501]
[1764187249212,0.4724,3029.7,3029.6,0.00254501]
[1764187250723,0.4724,3029.4,3028.4,0.435]
[1764187251312,0.2699,3028.5,3028.4,0.4926]
[1764187251822,0.27232371,3028.5,3028.4,0.49530601]
[1764187252019,0.74472371,3028.5,3028.4,0.00270601]
[1764187252211,0.74472371,3028.5,3028.4,0.01627713]
[1764187252416,0.4724,3028.2,3028.1,0.00494927]
[1764187253519,0.4724,3028.2,3028.1,0.00804086]
[1764187254021,0.4724,3028.2,3028.1,0.50064086]
[1764187254216,0.4724,3028.2,3028.1,0.00804086]
[1764187254618,0.4724,3028.2,3028.1,0.50064086]
[1764187255620,0.4724,3028.2,3028.1,0.00804086]
[1764187256421,0.4724,3028.2,3028.1,0.50064086]
[1764187256622,0.27232371,3028.5,3028.1,0.50064086]
[1764187257024,0.4724,3028.2,3028.1,0.50064086]
[1764187257321,0.27232371,3028.5,3028.1,0.50064086]
[1764187258019,0.4724,3028.2,3028.1,0.00804086]
[1764187260839,9.24713195,3028.2,3026.9,0.329]
[1764187261020,9.24713195,3028.2,3026.8,9.86373243]
[1764187261021,0.4724,3026.9,3026.0,0.2698]
[1764187261218,0.2699,3027.5,3026.9,0.4926]
[1764187261414,0.7423,3027.0,3026.3,0.458]
[1764187261624,0.2699,3027.5,3026.9,0.4926]
[1764187261928,2.77473195,3028.1,3026.9,0.4926]
[1764187261929,0.27232371,3028.5,3027.4,0.4926]
[1764187262613,0.27232371,3028.5,3027.9,0.4926]
[1764187263017,0.7423,3028.0,3027.2,0.16521]
[1764187263217,0.27727298,3028.5,3027.9,0.4926]
[1764187264828,0.27727298,3028.5,3028.4,0.4926]
[1764187264829,0.00737298,3028.5,3028.4,0.4926]
[1764187265226,0.74967298,3028.5,3027.8,0.16518]
[1764187266131,0.73137298,3028.5,3027.8,0.16518]
[1764187266321,0.00737298,3028.5,3028.4,0.4723]
[1764187266522,0.2699,3029.0,3028.4,0.4723]
[1764187267626,0.27900702,3029.0,3028.4,0.4723]
[1764187268127,0.7363,3028.5,3028.4,0.4723]
[1764187268424,0.2871,3028.0,3026.5,0.1427]
[1764187268632,0.7363,3027.0,3026.2,0.16526]
[1764187268822,0.00494927,3027.3,3026.5,0.2788]
[1764187269931,0.7363,3027.0,3026.1,2.788]
[1764187270926,0.00494927,3027.3,3026.1,2.788]
[1764187271728,0.4492,3027.0,3026.1,2.788]
[1764187271933,0.7363,3027.0,3026.1,2.788]
[1764187272234,0.7363,3027.0,3026.0,1.091]
[1764187272633,0.2871,3026.5,3024.9,0.16533]
[1764187272834,0.2871,3026.5,3024.9,2.76033]
[1764187273035,0.2871,3026.5,3025.0,0.43653]
[1764187273229,0.29023847,3026.5,3025.5,0.2788]
[1764187274031,0.00313847,3026.5,3026.4,0.4723]
[1764187275436,0.73943847,3026.5,3025.5,0.4441]
[1764187275637,0.00313847,3026.5,3026.4,0.4723]
[1764187276429,0.2871,3027.0,3026.4,0.4723]
[1764187276935,0.2871,3027.0,3026.0,0.2426]
[1764187276936,0.00494927,3027.3,3026.5,0.2788]
[1764187277243,0.7817745,3027.2,3026.5,0.2788]
[1764187277538,0.00314036,3027.2,3026.0,0.40787]
[1764187277842,0.2871,3027.0,3026.0,0.40787]
[1764187278430,0.2871,3027.0,3026.2,0.16526]
[1764187278635,0.00314036,3027.2,3026.2,0.16526]
[1764187281041,0.2871,3027.0,3026.2,0.16526]
[1764187283545,0.00314036,3027.2,3026.9,0.4723]
[1764187283949,0.7363,3027.0,3026.5,0.2788]
[1764187284338,0.00314036,3027.2,3026.9,0.4723]
[1764187284540,0.00314036,3027.2,3027.1,0.4723]
[1764187284741,0.78691612,3027.2,3027.1,0.4723]
[1764187285144,0.00314036,3027.2,3027.1,0.4723]
[1764187285443,0.2871,3028.5,3027.9,0.4723]
[1764187285638,0.7363,3028.0,3027.2,0.16521]
[1764187286239,0.73863424,3028.0,3027.2,0.1693626]
[1764187286440,0.00494927,3027.9,3027.3,0.00494927]
[1764187287643,0.4492,3027.4,3027.3,0.00494927]
[1764187288343,0.2871,3027.5,3027.3,0.47724927]
[1764187288853,0.00494927,3027.9,3027.8,0.4723]
[1764187289736,1.17818069,3028.6,3027.8,0.4723]
[1764187289942,1.17818069,3028.9,3028.5,0.4723]
[1764187290141,2.05946857,3029.0,3028.0,0.40776]
[1764187290142,0.2871,3028.5,3028.0,0.40776]
[1764187290346,0.2871,3028.5,3028.0,0.16516]
[1764187290851,0.00386917,3028.5,3028.4,0.4723]
[1764187291049,0.00494927,3028.6,3028.5,0.4723]
[1764187291442,0.2871,3029.0,3028.5,0.4723]
[1764187291647,0.4492,3028.6,3028.0,0.40776]
[1764187291848,0.2871,3029.0,3028.5,0.4723]
[1764187292051,0.28856353,3029.0,3028.5,0.4723]
[1764187293756,0.4492,3028.6,3028.1,0.16516]
[1764187294450,0.28856353,3029.0,3028.5,0.4723]
[1764187296257,0.00146353,3029.0,3028.9,0.459]
[1764187296552,0.2871,3029.5,3029.0,0.459]
[1764187296944,0.2871,3030.0,3029.0,0.731]
[1764187297146,0.78244462,3029.9,3029.0,0.731]
[1764187297351,0.2871,3030.0,3029.0,0.731]
[1764187297552,0.2871,3030.0,3029.2,0.00494927]
[1764187299149,0.2871,3030.5,3029.9,0.459]
[1764187299348,0.2871,3030.5,3029.9,0.46307226]
[1764187300254,0.743,3030.0,3029.9,0.00407226]
[1764187300855,0.4466,3030.0,3029.9,0.46307226]
[1764187301354,0.743,3030.0,3029.9,0.00407226]
[1764187302862,0.4466,3029.3,3029.2,0.00494927]
[1764187303758,0.2964,3030.0,3029.2,0.4681123]
[1764187303968,2.74401249,3030.5,3029.2,0.4681123]
[1764187304262,0.4466,3029.3,3029.2,0.0091123]
[1764187304756,0.4466,3029.3,3028.6,2.45691249]
[1764187304757,8.62201249,3029.3,3027.0,0.272]
[1764187304953,2.45691249,3028.4,3027.2,1.23]
[1764187305658,2.45948019,3028.4,3027.6,0.00494927]
[1764187306362,0.4466,3027.7,3027.6,0.00494927]
[1764187306546,0.05014206,3027.7,3027.6,0.00494927]
[1764187306951,0.00494927,3028.0,3027.6,0.46394927]
[1764187307153,0.00494927,3028.0,3027.9,0.459]
[1764187307453,0.45154927,3028.0,3027.6,0.00494927]
[1764187307850,0.4466,3027.7,3027.6,0.00494927]
[1764187309955,0.19194927,3028.0,3027.6,0.46394927]
[1764187309956,0.00494927,3028.0,3027.6,0.46394927]
[1764187310858,0.00494927,3028.0,3025.6,0.86736221]
[1764187310859,0.43785,3026.5,3025.6,0.86736221]
[1764187311059,2.45691249,3026.2,3025.2,0.272]
[1764187311367,7.2,3026.9,3025.2,0.272]
[1764187311557,0.79435351,3026.8,3025.5,2.45691249]
[1764187311759,0.00495778,3026.5,3025.8,0.27695778]
[1764187311965,0.00495778,3026.5,3026.4,0.272]
[1764187313056,0.00495778,3026.5,3026.4,0.731]
[1764187313263,3.80026318,3028.0,3026.7,0.459]
[1764187313463,0.80195741,3027.9,3026.7,0.459]
[1764187313655,0.80195741,3027.8,3026.7,0.459]
[1764187313862,0.80195741,3027.7,3026.7,0.459]
[1764187314056,2.62208249,3028.0,3026.7,0.459]
[1764187314259,0.00495778,3027.7,3026.7,0.459]
[1764187315062,0.00495778,3027.7,3026.4,0.272]
[1764187315369,2.45691249,3027.2,3026.4,0.272]
[1764187317465,2.45691249,3027.2,3026.8,0.0134603]
[1764187318353,2.45691249,3027.2,3027.0,0.02013504]
[1764187318555,2.45691249,3027.2,3026.4,0.272]
[1764187320668,2.45691249,3027.6,3027.0,0.272]
[1764187321162,2.45691249,3027.2,3026.4,0.272]
[1764187321363,0.00495778,3027.7,3026.4,0.272]
[1764187321364,2.45691249,3026.5,3026.4,0.272]
[1764187321557,2.45691249,3026.5,3026.0,0.721]
[1764187321756,1.18313847,3027.7,3025.8,0.27695778]
[1764187321757,2.45691249,3026.1,3025.8,0.27695778]
[1764187321958,2.45691249,3026.5,3025.8,0.27695778]
[1764187323867,8.37818069,3027.4,3025.8,0.27695778]
[1764187323868,2.45691249,3026.9,3025.8,0.27695778]
[1764187324068,2.45691249,3027.3,3026.5,0.272]
[1764187325073,2.46187027,3027.7,3026.5,0.272]
[1764187325368,0.00495778,3027.7,3026.5,0.272]
[1764187328469,0.00495778,3027.7,3027.5,0.2701]
[1764187329068,0.00495778,3027.7,3027.0,0.2701]
[1764187329570,0.00495778,3027.7,3027.5,0.2701]
[1764187329768,0.002589,3028.0,3027.6,0.4726]
[1764187330162,0.002589,3028.0,3027.5,0.2701]
[1764187330372,2.45691249,3028.6,3028.0,0.2701]
[1764187330774,2.45691249,3028.6,3028.5,0.2701]
[1764187330976,2.45691249,3028.6,3028.2,0.00495778]
[1764187331363,2.4590157,3028.6,3028.2,0.00733243]
[1764187332478,0.80514481,3028.5,3028.2,0.00733243]
[1764187332677,2.4590157,3028.6,3028.2,0.00733243]
[1764187332879,0.80516593,3028.5,3028.2,0.00733243]
[1764187333080,2.4590157,3028.6,3028.2,0.00733243]
[1764187333273,0.80523217,3028.5,3028.2,0.00733243]
[1764187333479,0.80523217,3028.4,3028.2,0.00733243]
[1764187333782,2.4590157,3028.6,3028.2,0.00733243]
[1764187333979,0.8059383,3028.5,3028.2,0.00733243]
[1764187334177,0.8059383,3028.4,3028.2,0.00733243]
[1764187334373,0.80693797,3028.3,3028.2,0.00733243]
[1764187337873,0.80693797,3028.3,3028.0,0.2701]
[1764187337874,1.98511866,3028.3,3027.5,0.2701]
[1764187338082,3.7548791,3028.2,3027.5,0.2701]
[1764187338288,0.80693797,3028.1,3027.5,0.2701]
[1764187338881,0.81189575,3028.1,3027.5,0.27505778]
[1764187339077,0.80693797,3028.0,3027.5,0.27871628]
[1764187341698,0.80693797,3027.9,3027.5,0.27871628]
[1764187341896,0.80693797,3027.8,3027.5,0.27871628]
[1764187342098,0.80693797,3027.7,3027.5,0.27871628]
[1764187342298,0.17011778,3028.1,3027.5,0.27871628]
[1764187342492,2.15641463,3028.1,3027.5,0.27871628]
[1764187342693,0.80811616,3028.0,3027.5,0.27871628]
[1764187342895,1.17818069,3028.0,3027.5,0.27871628]
[1764187343095,1.98629685,3028.0,3027.5,0.27871628]
[1764187343896,0.80811616,3027.9,3027.5,0.27871628]
[1764187344203,0.80811616,3027.8,3027.5,0.27871628]
[1764187344405,0.80811616,3027.7,3027.5,0.27871628]
[1764187344603,0.80811616,3027.6,3027.5,0.27871628]
[1764187344804,1.17818069,3028.0,3027.5,0.27871628]
[1764187345005,1.98629685,3028.0,3027.5,0.27871628]
[1764187346307,0.80811616,3027.9,3027.5,0.27871628]
[1764187346502,0.80811616,3027.8,3027.5,0.27871628]
[1764187346708,0.80811616,3027.7,3027.6,0.4726]
[1764187346904,0.80811616,3028.0,3027.6,0.4726]
[1764187347406,0.97327616,3028.0,3027.5,0.27871628]
[1764187347605,1.34335069,3027.9,3027.5,0.27871628]
[1764187347806,1.98629685,3027.8,3027.5,0.27871628]
[1764187349804,4.76907798,3027.7,3027.0,0.2701]
[1764187350006,1.34338069,3027.5,3027.0,0.2701]
[1764187350196,0.80811616,3027.4,3027.0,0.2701]
[1764187350504,1.17818069,3027.9,3027.5,0.2701]
[1764187350702,1.17818069,3027.9,3027.5,0.27254053]
[1764187350909,1.98362464,3027.9,3027.5,0.27254053]
[1764187351206,0.80544395,3027.8,3027.5,0.27254053]
[1764187351502,0.80544395,3027.7,3027.5,0.27254053]
[1764187351809,0.80544395,3027.6,3027.5,0.27254053]
[1764187352702,0.80544395,3027.6,3027.5,0.74514053]
[1764187353299,0.80544395,3027.6,3027.5,0.27254053]
[1764187354411,0.80544395,3027.6,3027.5,0.74514053]
[1764187354911,1.17818069,3028.0,3027.8,0.4726]
[1764187355110,1.18313847,3028.1,3028.0,0.2701]
[1764187355710,0.00495778,3028.1,3028.0,0.2701]
[1764187356612,1.18313847,3028.1,3028.0,0.2701]
[1764187357613,0.00495778,3028.1,3028.0,0.2701]
[1764187358014,1.19057295,3028.1,3028.0,0.2701]
[1764187358214,0.00495778,3028.1,3028.0,0.2701]
[1764187359411,1.19099551,3028.1,3028.0,0.2701]
[1764187359814,0.00495778,3028.1,3028.0,0.2701]
[1764187360413,1.19103323,3028.1,3028.0,0.2701]
[1764187360808,1.77732635,3028.1,3027.5,0.27254053]
[1764187361113,1.18613439,3027.7,3027.5,0.27254053]
[1764187361311,1.18613439,3027.6,3027.5,0.27254053]
[1764187363724,1.35132439,3027.6,3027.5,0.27254053]
[1764187364408,1.35132439,3027.6,3027.5,0.00244053]
[1764187364610,1.35132439,3027.6,3027.0,0.2701]
[1764187364611,2.36315809,3027.6,3027.0,0.2701]
[1764187364813,4.13469517,3027.1,3027.0,0.2701]
[1764187365119,2.94799113,3027.1,3027.0,0.2701]
[1764187365310,4.13469517,3027.1,3027.0,0.2701]
[1764187365507,4.13469517,3027.1,3027.0,0.27253343]
[1764187367024,3.74491628,3027.1,3027.0,0.27253343]
[1764187367225,0.79692515,3027.1,3027.0,0.76733343]
[1764187367821,0.79692515,3027.1,3027.0,0.27253343]
[1764187368426,0.79692515,3027.1,3027.0,0.76733343]
[1764187370514,0.79692515,3027.1,3027.0,0.27253343]
[1764187372029,1.18670404,3027.3,3027.0,0.27253343]
[1764187372230,0.79653527,3027.2,3027.0,0.27253343]
[1764187372430,0.79653527,3027.1,3027.0,0.27253343]
[1764187372831,0.79653527,3027.1,3027.0,0.76733343]
[1764187373832,0.79653527,3027.1,3027.0,0.27253343]
[1764187374424,0.96174527,3027.1,3027.0,0.27253343]
[1764187374926,0.79653527,3027.1,3027.0,0.27253343]
[1764187375133,0.79653527,3027.1,3027.0,0.76733343]
[1764187375334,0.79653527,3027.1,3027.0,0.27253343]
[1764187376839,0.79653527,3027.1,3027.0,0.76733343]
[1764187377731,1.35188404,3027.7,3027.6,0.4948]
[1764187379729,0.16518,3027.7,3027.6,0.4948]
[1764187380927,0.16518,3027.7,3027.5,0.2706]
[1764187381131,1.35188404,3027.7,3027.5,0.2706]
[1764187382431,1.35188404,3027.7,3027.6,0.4948]
[1764187382738,1.35188404,3027.7,3027.5,0.2706]
[1764187385231,1.18670404,3027.6,3027.5,0.2706]
[1764187385431,4.13467517,3027.6,3027.5,0.2706]
[1764187385633,4.13467517,3027.6,3027.5,0.2952]
[1764187386541,4.13467517,3027.6,3027.5,0.2839]
[1764187387047,0.16521,3027.2,3027.0,0.27253343]
[1764187387437,1.35167132,3027.2,3027.0,0.27253343]
[1764187387637,0.16521,3027.2,3027.0,0.27253343]
[1764187388242,1.35167132,3027.2,3027.0,0.27253343]
[1764187389643,0.79178398,3027.1,3027.0,0.27253343]
[1764187390044,0.79178398,3027.1,3027.0,0.73203343]
[1764187392347,1.9782453,3027.1,3027.0,0.73203343]
[1764187392847,0.79178398,3027.1,3027.0,0.73203343]
[1764187396746,1.9782453,3027.1,3027.0,0.73203343]
[1764187397252,1.9782453,3027.1,3027.0,0.27253343]
[1764187397941,4.76102643,3027.1,3027.0,0.27253343]
[1764187398145,5.35425709,3027.1,3027.0,0.27253343]
[1764187398349,5.35425709,3027.1,3027.0,0.00243343]
[1764187398544,5.02972559,3027.1,3026.0,0.2706]
[1764187398752,2.45824963,3026.6,3026.0,0.2706]
[1764187398951,4.43803806,3026.6,3026.0,0.2706]
[1764187399151,5.0322261,3026.6,3026.0,0.2706]
[1764187399355,5.0322261,3026.6,3026.5,0.2839]
[1764187399553,5.0322261,3026.6,3026.5,0.28758069]
[1764187399750,3.25003361,3026.6,3026.0,0.2706]
[1764187400057,3.25003361,3026.6,3025.0,0.2839]
[1764187400058,2.45824963,3025.6,3025.0,0.2839]
[1764187400251,3.25003361,3025.6,3025.0,0.2839]
[1764187400652,3.25285119,3025.6,3025.5,0.28814547]
[1764187401250,3.25285119,3025.6,3025.5,0.74764547]
[1764187401761,3.25285119,3025.6,3025.5,0.28814547]
[1764187403458,0.16531,3025.5,3025.0,0.2839]
[1764187403659,2.45824963,3025.1,3025.0,0.2839]
[1764187403861,3.25003361,3025.1,3025.0,0.2839]
[1764187404254,3.25003361,3025.1,3025.0,0.28670931]
[1764187406857,3.41535361,3025.1,3025.0,0.28670931]
[1764187407363,2.62356963,3025.1,3025.0,0.28670931]
[1764187407753,2.45824963,3025.1,3024.7,0.00328273]
[1764187407957,0.16536,3024.5,3024.0,0.2839]
[1764187408161,2.45824963,3024.1,3024.0,0.2839]
[1764187408657,2.62360963,3024.5,3024.0,0.7434]
[1764187408971,2.62360963,3024.5,3024.4,0.4595]
[1764187408972,2.45824963,3024.5,3024.4,0.4595]
[1764187409262,0.00495778,3024.6,3024.5,0.7434]
[1764187409456,0.00495778,3024.6,3024.5,0.2839]
[1764187409861,0.00495778,3024.6,3024.5,0.7434]
[1764187410062,0.00495778,3024.6,3024.5,0.2839]
[1764187410263,0.00495778,3024.6,3024.5,0.7434]
[1764187411564,1.35104201,3025.6,3025.5,0.2839]
[1764187411772,3.24607169,3025.6,3025.0,0.2839]
[1764187412066,3.24607169,3025.6,3025.0,0.7434]
[1764187412067,2.45824963,3025.1,3025.0,0.7434]
[1764187412459,2.45824963,3025.1,3025.0,0.2839]
[1764187413084,3.24326653,3025.1,3024.0,0.28819253]
[1764187413275,2.45824963,3024.2,3024.0,0.28819253]
[1764187413777,0.16538,3024.1,3024.0,0.28819253]
[1764187414872,0.16538,3024.1,3023.0,0.2839]
[1764187414873,0.16541,3023.6,3023.0,0.2839]
[1764187415380,2.62365963,3023.6,3023.0,0.2839]
[1764187415882,2.62365963,3023.6,3023.5,0.28721136]
[1764187418274,2.62365963,3023.6,3023.5,0.74671136]
[1764187418476,2.62365963,3023.6,3023.5,0.28721136]
[1764187419883,2.62365963,3023.6,3023.5,0.77711136]
[1764187420082,2.45824963,3023.6,3023.5,0.77711136]
[1764187420284,2.45824963,3023.6,3023.5,0.28721136]
[1764187421387,2.45824963,3023.6,3023.5,0.77711136]
[1764187422380,2.45824963,3023.6,3023.5,0.28721136]
[1764187422581,2.45824963,3023.6,3022.5,0.44936]
[1764187422582,0.16546,3022.6,3022.5,0.2839]
[1764187422781,2.62370963,3022.6,3022.5,0.2839]